fUSD/lending_fUSD_20240819
["ID","MTS","AMOUNT","RATE_DAILY","PERIOD"]
[335283342,1724067040611,-250.0,0.00010959,2]
[335283343,1724067040620,-733.99,0.00010959,2]
[335283344,1724067040629,-611.66,0.00010959,2]
[335283345,1724067040638,-509.71,0.00010959,2]
[335283346,1724067040648,-424.76,0.00010959,2]
[335283347,1724067040657,-353.97,0.00010959,2]
[335283348,1724067040667,-294.97,0.00010959,2]
[335283349,1724067040676,-2000.0,0.00010959,2]
[335283350,1724067040685,-200.0,0.00010959,2]
[335283351,1724067040695,-200.0,0.00010959,2]
[335283352,1724067040705,-151.0,0.00010959,2]
[335283353,1724067040714,-151.0,0.00010959,2]
[335283354,1724067040723,-500.0,0.00010959,2]
[335283355,1724067040732,-1047.85,0.00010959,2]
[335283356,1724067040741,-500.0,0.00010959,2]
[335283357,1724067040751,-55214.52846252,0.0001096,2]
[335283358,1724067040762,-20899.93874342,0.0001096,2]
[335283359,1724067040771,-151.0,0.0001096,2]
[335283360,1724067040780,-151.0,0.0001096,2]
[335283361,1724067040790,-151.0,0.0001096,2]
[335283362,1724067040799,-151.0,0.0001096,2]
[335283363,1724067040808,-151.0,0.0001096,2]
[335283364,1724067040818,-151.0,0.0001096,2]
[335283365,1724067040827,-150.0,0.00010964,2]
[335283366,1724067040839,-150.0,0.00010967,2]
[335283367,1724067040849,-200.02209879,0.0001097,2]
[335283368,1724067040858,-410.016937,0.00010974,2]
[335283369,1724067040868,-150.0,0.00010975,2]
[335283370,1724067040877,-500.0,0.00010978,2]
[335283371,1724067040886,-1250.0,0.00010978,2]
[335283372,1724067040896,-163.076,0.00010979,2]
[335283373,1724067040905,-297.134,0.00010979,2]
[335283374,1724067040916,-150.82,0.00010979,2]
[335283375,1724067040925,-150.82,0.0001098,2]
[335283376,1724067040934,-150.82,0.00010983,2]
[335283377,1724067040943,-150.82,0.00010984,2]
[335283378,1724067040953,-150.82,0.00010984,2]
[335283379,1724067040962,-150.82,0.00010985,2]
[335283380,1724067040971,-150.82,0.00010985,2]
[335283381,1724067040980,-150.82,0.00010985,2]
[335283382,1724067040989,-150.82,0.00010985,2]
[335283383,1724067040998,-150.82,0.00010985,2]
[335283384,1724067041007,-520.87,0.00010988,2]
[335283385,1724067041016,-150.82,0.00010988,2]
[335283386,1724067041025,-150.82,0.00010989,2]
[335283387,1724067041034,-150.82,0.00010989,2]
[335283388,1724067041043,-150.82,0.00010989,2]
[335283389,1724067041053,-150.82,0.00010989,2]
[335283390,1724067041062,-150.82,0.00010989,2]
[335283391,1724067041071,-150.82,0.00010989,2]
[335283392,1724067041080,-331.24565388,0.00010989,2]
[335283393,1724067041090,-12659.58,0.00010989,2]
[335283394,1724067041100,-1428.87,0.00010989,2]
[335283395,1724067041109,-2739.27,0.00010989,2]
[335283396,1724067041118,-3478.27,0.00010989,2]
[335283397,1724067041127,-1659.63,0.00010989,2]
[335283398,1724067041136,-2909.85,0.00010989,2]
[335283399,1724067041145,-500.0,0.00010989,2]
[335283400,1724067041158,-150.0,0.0001099,2]
[335283401,1724067041167,-37281.80571288,0.0001099,2]
[335283402,1724067041179,-250.0,0.0001099,2]
[335283403,1724067041190,-57744.71609327,0.0001099,2]
[335283404,1724067041199,-197.8219695,0.00010992,2]
[335283405,1724067041209,-185.4776729,0.00010992,2]
[335283406,1724067041218,-185.4776729,0.00010992,2]
[335283407,1724067041228,-185.4776729,0.00010992,2]
[335283408,1724067041237,-185.4776729,0.00010992,2]
[335283409,1724067041246,-185.4776729,0.00010992,2]
[335283410,1724067041255,-185.4776729,0.00010992,2]
[335283411,1724067041264,-5771.5755217,0.00010992,2]
[335283412,1724067041274,-5260.104124,0.00010992,2]
[335283413,1724067041283,-4748.6327264,0.00010992,2]
[335283414,1724067041293,-4237.1613288,0.00010992,2]
[335283415,1724067041302,-3725.6899312,0.00010992,2]
[335283416,1724067041312,-3214.2185335,0.00010992,2]
[335283417,1724067041321,-160.9727789,0.00010992,2]
[335283418,1724067041330,-160.9727789,0.00010992,2]
[335283419,1724067041340,-160.9727789,0.00010992,2]
[335283420,1724067041349,-160.9727789,0.00010992,2]
[335283421,1724067041358,-160.9727789,0.00010992,2]
[335283423,1724067041368,-160.9727789,0.00010992,2]
[335283425,1724067041377,-520.87,0.00010992,2]
[335283427,1724067041387,-86393.6196435,0.00010993,2]
[335283429,1724067041396,-500.0,0.00010993,2]
[335283431,1724067041405,-500.0,0.00010993,2]
[335283433,1724067041415,-500.0,0.00010993,2]
[335283435,1724067041424,-1047.85,0.00010993,2]
[335283437,1724067041433,-520.87,0.00010993,2]
[335283439,1724067041443,-500.0,0.00010993,2]
[335283441,1724067041452,-500.0,0.00010993,2]
[335283443,1724067041462,-567.0,0.00010994,2]
[335283445,1724067041472,-191.40111591,0.00010994,2]
[335283447,1724067041485,-500.0,0.00010994,2]
[335283449,1724067041494,-500.0,0.00010994,2]
[335283451,1724067041504,-500.0,0.00010994,2]
[335283453,1724067041513,-500.0,0.00010994,2]
[335283454,1724067041523,-500.0,0.00010994,2]
[335283456,1724067041532,-500.0,0.00010994,2]
[335283458,1724067041541,-183135.4749396,0.00010994,2]
[335283460,1724067041551,-151.0,0.00010994,2]
[335283462,1724067041562,-151.0,0.00010994,2]
[335283464,1724067041571,-500.0,0.00010994,2]
[335283466,1724067041580,-500.0,0.00010994,2]
[335283468,1724067041591,-500.0,0.00010994,2]
[335283470,1724067041601,-151.0,0.00010994,2]
[335283472,1724067041611,-500.0,0.00010994,2]
[335283474,1724067041620,-500.0,0.00010994,2]
[335283476,1724067041629,-500.0,0.00010994,2]
[335283478,1724067041638,-12659.58,0.00010994,2]
[335283480,1724067041648,-12659.58,0.00010994,2]
[335283482,1724067041657,-1250.0,0.00010994,2]
[335283484,1724067041667,-1250.0,0.00010994,2]
[335283486,1724067041676,-1250.0,0.00010994,2]
[335283487,1724067041685,-1428.87,0.00010994,2]
[335283489,1724067041694,-1428.87,0.00010994,2]
[335283491,1724067041704,-2739.27,0.00010994,2]
[335283493,1724067041713,-2739.27,0.00010994,2]
[335283495,1724067041722,-3478.27,0.00010994,2]
[335283497,1724067041731,-3478.27,0.00010994,2]
[335283499,1724067041740,-1659.63,0.00010994,2]
[335283501,1724067041750,-1659.63,0.00010994,2]
[335283503,1724067041759,-500.0,0.00010994,2]
[335283505,1724067041768,-500.0,0.00010994,2]
[335283507,1724067041777,-2909.85,0.00010994,2]
[335283508,1724067041786,-500.0,0.00010994,2]
[335283510,1724067041796,-2909.85,0.00010994,2]
[335283512,1724067041805,-500.0,0.00010994,2]
[335283514,1724067041814,-500.0,0.00010994,2]
[335283516,1724067041823,-500.0,0.00010994,2]
[335283518,1724067041832,-1047.85,0.00010994,2]
[335283520,1724067041848,-1047.85,0.00010994,2]
[335283521,1724067041859,-500.0,0.00010994,2]
[335283522,1724067041868,-500.0,0.00010994,2]
[335283523,1724067041877,-520.87,0.00010994,2]
[335283524,1724067041888,-520.87,0.00010994,2]
[335283525,1724067041898,-500.0,0.00010994,2]
[335283526,1724067041907,-500.0,0.00010994,2]
[335283527,1724067041916,-500.0,0.00010994,2]
[335283528,1724067041926,-500.0,0.00010994,2]
[335283529,1724067041935,-165642.91135782,0.00010995,10]
[335283530,1724067041946,-1679.44999998,0.00010995,10]
[335283531,1724067041957,-15502.56404239,0.00010995,10]
[335283532,1724067041969,-959.24343264,0.00010995,10]
[335283533,1724067041980,-7419.21920943,0.00010995,10]
[335283534,1724067041991,-4041.95658326,0.00010995,10]
[335283535,1724067042002,-2122.27327014,0.00010995,10]
[335283536,1724067042013,-582.44,0.00010995,10]
[335283550,1724067042876,-151.0,0.00010899,2]
[335283551,1724067042886,-101.67886842,0.00010899,2]
[335283554,1724067042898,-49.32113158,0.00010899,2]
[335283555,1724067042907,-151.0,0.00010899,2]
[335283556,1724067042917,-93.07886842,0.0001096,2]
[335283559,1724067044405,-57.92113158,0.0001096,2]
[335283560,1724067044415,-268.02886842,0.00010995,10]
[335283561,1724067044427,-1539.9164539,0.00010995,10]
[335283562,1724067044438,-3792.97760677,0.00010995,10]
[335283563,1724067044450,-406.07,0.00010995,10]
[335283564,1724067044461,-267.3151378,0.00010995,10]
[335283565,1724067044473,-686.77,0.00010995,10]
[335283566,1724067044490,-713.00703871,0.00010995,10]
[335283567,1724067044502,-763.43869,0.00010995,10]
[335283568,1724067044517,-558.39963997,0.00010995,10]
[335283569,1724067044530,-686.6132303,0.00010995,10]
[335283570,1724067044541,-906.17357973,0.00010995,10]
[335283571,1724067044554,-421.401,0.00010995,10]
[335283572,1724067044565,-347.6189179,0.00010995,10]
[335283581,1724067046024,-245.81,0.00010959,2]
[335283582,1724067046034,-151.0,0.0001099,2]
[335283583,1724067046044,-165.115809,0.00010993,2]
[335283584,1724067046054,-10.51315075,0.00010995,10]
[335283585,1724067046326,-3469.87,0.00010995,10]
[335283588,1724067069670,173.81,8.219e-05,2]
[335283595,1724067361378,215.85,9.85e-05,2]
[335283596,1724067406095,530.22171464,9.899e-05,2]
[335283597,1724067428189,1000.0,9.85e-05,2]
[335283598,1724067543450,175.17,8.219e-05,2]
[335283599,1724067748667,6988.21,9.888e-05,2]
[335283600,1724067757179,272.53,9.89e-05,2]
[335283601,1724067828280,171.66,9.876e-05,2]
[335283651,1724068007513,200.0,9.889e-05,2]
[335283652,1724068015856,316.9637025,9.899e-05,2]
[335283668,1724068050387,177.16,8.219e-05,2]
[335283669,1724068054860,258.47952218,9.899e-05,2]
[335283676,1724068172965,250.0,9.894e-05,2]
[335283687,1724068231911,-185.22,9.919e-05,2]
[335283689,1724068231921,-110.11202042,9.999e-05,2]
[335283690,1724068231934,-189.88797958,9.999e-05,2]
[335283691,1724068231945,-300.0,9.999e-05,2]
[335283692,1724068231955,-188.80358414,0.0001,3]
[335283693,1724068231967,-2174.47,0.0001,3]
[335283694,1724068231979,-9051.45447527,0.0001,3]
[335283695,1724068232076,-1876.52019436,0.0001,3]
[335283696,1724068232088,-642.56,0.0001,2]
[335283697,1724068232102,-150.0,0.0001,2]
[335283698,1724068232112,-1050.0,0.0001,2]
[335283699,1724068232122,-1250.65459456,0.0001,2]
[335283700,1724068232131,-178.24,0.00010027,2]
[335283701,1724068232141,-587.0,0.00010038,2]
[335283702,1724068232150,-155.0,0.00010097,2]
[335283703,1724068232160,-177.16,0.0001047,2]
[335283704,1724068232170,-5081.5,0.0001047,2]
[335283705,1724068232179,-2343.32801118,0.00010566,2]
[335283706,1724068232189,-292.76862131,0.00010566,2]
[335283707,1724068232198,-207.0,0.0001058,2]
[335283708,1724068232208,-207.0,0.0001065,2]
[335283709,1724068232218,-321.52957811,0.00010684,2]
[335283710,1724068232227,-507.99275901,0.00010684,2]
[335283711,1724068232236,-207.0,0.0001072,2]
[335283713,1724068232245,-207.0,0.0001079,2]
[335283714,1724068232255,-499.99,0.00010799,2]
[335283716,1724068232264,-207.0,0.0001086,2]
[335283718,1724068232273,-435.67788,0.0001088,2]
[335283720,1724068232283,-210.90606601,0.00010888,2]
[335283722,1724068232292,-150.0,0.00010897,2]
[335283724,1724068232302,-322.81251756,0.00010898,2]
[335283726,1724068232312,-152.67384191,0.00010899,2]
[335283728,1724068232321,-368.9649527,0.00010899,2]
[335283729,1724068232334,-310.0,0.00010899,2]
[335283730,1724068232343,-368.96495268,0.000109,2]
[335283731,1724068232352,-368.96495268,0.000109,2]
[335283732,1724068232362,-598.62509491,0.000109,2]
[335283733,1724068232371,-1426.98752144,0.000109,2]
[335283734,1724068232381,-764.0,0.00010904,2]
[335283735,1724068232391,-205.0,0.0001093,2]
[335283736,1724068232400,-207.0,0.0001093,2]
[335283737,1724068232410,-515.27605672,0.00010949,2]
[335283738,1724068232422,-2000.0,0.00010959,2]
[335283739,1724068232431,-1087.77,0.00010959,2]
[335283740,1724068232440,-250.0,0.00010959,2]
[335283741,1724068232449,-204.84,0.00010959,2]
[335283742,1724068232458,-170.7,0.00010959,2]
[335283743,1724068232467,-853.54,0.00010959,2]
[335283744,1724068232477,-1000.0,0.00010959,2]
[335283745,1724068232486,-150.0,0.00010959,2]
[335283746,1724068232495,-547.15346494,0.00010979,2]
[335283747,1724068232505,-150.82,0.00010989,2]
[335283748,1724068232515,-150.82,0.00010989,2]
[335283749,1724068232524,-150.82,0.00010989,2]
[335283750,1724068232534,-150.82,0.00010989,2]
[335283751,1724068232543,-150.82,0.00010989,2]
[335283752,1724068232552,-1001.6,0.0001099,2]
[335283753,1724068232561,-150.82,0.0001099,2]
[335283754,1724068232571,-150.82,0.0001099,2]
[335283755,1724068232582,-150.82,0.0001099,2]
[335283756,1724068232591,-150.82,0.0001099,2]
[335283757,1724068232601,-150.82,0.0001099,2]
[335283758,1724068232610,-150.82,0.0001099,2]
[335283759,1724068232620,-150.82,0.0001099,2]
[335283760,1724068232629,-150.82,0.0001099,2]
[335283761,1724068232639,-150.82,0.0001099,2]
[335283762,1724068232648,-150.82,0.0001099,2]
[335283763,1724068232657,-150.82,0.0001099,2]
[335283764,1724068232666,-150.82,0.0001099,2]
[335283765,1724068232675,-150.82,0.0001099,2]
[335283766,1724068232685,-150.82,0.0001099,2]
[335283767,1724068232695,-150.82,0.0001099,2]
[335283768,1724068232704,-150.82,0.0001099,2]
[335283769,1724068232714,-150.82,0.0001099,2]
[335283770,1724068232723,-150.82,0.0001099,2]
[335283771,1724068232733,-150.82,0.0001099,2]
[335283772,1724068232743,-150.82,0.0001099,2]
[335283773,1724068232752,-150.82,0.0001099,2]
[335283774,1724068232762,-150.82,0.0001099,2]
[335283775,1724068232771,-150.82,0.0001099,2]
[335283776,1724068232781,-150.82,0.0001099,2]
[335283777,1724068232790,-150.82,0.0001099,2]
[335283778,1724068232799,-150.82,0.0001099,2]
[335283779,1724068232809,-150.82,0.0001099,2]
[335283780,1724068232818,-150.82,0.0001099,2]
[335283781,1724068232829,-150.82,0.0001099,2]
[335283782,1724068232838,-150.82,0.0001099,2]
[335283783,1724068232847,-150.82,0.0001099,2]
[335283784,1724068232857,-150.82,0.0001099,2]
[335283785,1724068232866,-150.82,0.0001099,2]
[335283786,1724068232875,-150.82,0.0001099,2]
[335283787,1724068232887,-150.82,0.0001099,2]
[335283788,1724068232898,-150.82,0.0001099,2]
[335283789,1724068232907,-150.82,0.0001099,2]
[335283790,1724068232917,-150.82,0.0001099,2]
[335283791,1724068232926,-150.82,0.0001099,2]
[335283792,1724068232936,-150.82,0.0001099,2]
[335283793,1724068232945,-150.82,0.0001099,2]
[335283794,1724068232955,-150.82,0.0001099,2]
[335283795,1724068232965,-150.82,0.0001099,2]
[335283796,1724068232974,-150.82,0.0001099,2]
[335283797,1724068232984,-150.82,0.0001099,2]
[335283798,1724068232993,-150.82,0.0001099,2]
[335283799,1724068233003,-150.82,0.0001099,2]
[335283800,1724068233013,-1603.58767277,0.00010993,2]
[335283801,1724068233022,-316.9637025,0.00010993,2]
[335283802,1724068233032,-500.0,0.00010994,2]
[335283803,1724068233042,-500.0,0.00010994,2]
[335283804,1724068233052,-500.0,0.00010994,2]
[335283805,1724068233062,-500.0,0.00010994,2]
[335283806,1724068233071,-500.0,0.00010994,2]
[335283807,1724068233085,-989.58,0.00010994,2]
[335283808,1724068233095,-10549.65,0.00010994,2]
[335283809,1724068233105,-1190.73,0.00010994,2]
[335283810,1724068233115,-2282.73,0.00010994,2]
[335283811,1724068233124,-2898.56,0.00010994,2]
[335283812,1724068233135,-1383.03,0.00010994,2]
[335283813,1724068233145,-500.0,0.00010994,2]
[335283814,1724068233155,-500.0,0.00010994,2]
[335283815,1724068233164,-258.94,0.00010994,2]
[335283816,1724068233174,-2424.88,0.00010994,2]
[335283817,1724068233184,-500.0,0.00010994,2]
[335283818,1724068233196,-500.0,0.00010994,2]
[335283819,1724068233206,-785.88,0.00010994,2]
[335283820,1724068233216,-500.0,0.00010994,2]
[335283821,1724068233226,-500.0,0.00010994,2]
[335283822,1724068233236,-190.21507708,0.00010994,2]
[335283823,1724068233247,-505.09795426,0.00010994,2]
[335283824,1724068233257,-122377.20614051,0.00010995,10]
[335283825,1724068233269,-3702.08686573,0.00010995,10]
[335283826,1724068233280,-2338.34835547,0.00010995,10]
[335283827,1724068233293,-1742.43761047,0.00010995,10]
[335283828,1724068233305,-397.56791311,0.00010995,10]
[335283829,1724068233316,-3206.11771593,0.00010995,10]
[335283830,1724068233327,-1074.32,0.00010995,10]
[335283831,1724068233342,-956.69375819,0.00010995,10]
[335283832,1724068233354,-14259.07907785,0.00010995,10]
[335283833,1724068233366,-642.3977412,0.00010995,10]
[335283837,1724068237909,-500.0,0.00010994,2]
[335283838,1724068237919,-159.32734244,0.00010995,10]
[335283839,1724068237932,-746.48651101,0.00010995,10]
[335283840,1724068237957,-1587.81759761,0.00010995,10]
[335283841,1724068238012,-13509.68924109,0.00010995,10]
[335283849,1724068240022,-1562.82495624,0.00010995,10]
[335283850,1724068240034,-8757.58802391,0.00010995,10]
[335283851,1724068240045,-387.175,0.00010995,10]
[335283852,1724068240130,-1166.14764,0.00010995,10]
[335283854,1724068240473,-0.132736,0.00010995,10]
[335283873,1724068243715,-1249.03626805,0.00010995,10]
[335283874,1724068243726,-10852.61019446,0.00010995,10]
[335283875,1724068243737,-5296.76582824,0.00010995,10]
[335283876,1724068243748,-403.92333797,0.00010995,10]
[335283877,1724068243759,-3486.10457414,0.00010995,10]
[335283878,1724068246146,-5242.99104025,0.00010995,10]
[335283879,1724068246202,-90124.3358437,0.00010995,10]
[335283880,1724068246211,-2000.0,0.00010995,2]
[335283881,1724068246221,-200.0,0.00010995,2]
[335283882,1724068246230,-200.0,0.00010995,2]
[335283883,1724068246239,-500.0,0.00010996,2]
[335283884,1724068246248,-989.58,0.00010996,2]
[335283885,1724068246257,-10549.65,0.00010996,2]
[335283886,1724068246266,-1190.73,0.00010996,2]
[335283887,1724068246275,-2282.73,0.00010996,2]
[335283888,1724068246285,-2898.56,0.00010996,2]
[335283889,1724068246296,-1383.03,0.00010996,2]
[335283890,1724068246307,-2424.88,0.00010996,2]
[335283891,1724068246317,-500.0,0.00010996,2]
[335283892,1724068246327,-157.83829844,0.00010996,2]
[335283893,1724068246338,-947.02979064,0.00010997,2]
[335283894,1724068246347,-500.0,0.00010998,2]
[335283895,1724068246355,-500.0,0.00010998,2]
[335283896,1724068246364,-594.34312645,0.00010998,2]
[335283898,1724068246373,-989.58,0.00010998,2]
[335283899,1724068246382,-989.58,0.00010998,2]
[335283900,1724068246391,-10549.65,0.00010998,2]
[335283901,1724068246400,-1586.98343407,0.00010998,2]
[335283902,1724068246411,-5786.81925599,0.00010998,2]
[335283903,1724068246426,-2925.7355855,0.00010998,2]
[335283904,1724068246437,-250.11172444,0.00010998,2]
[335283905,1724068246447,-1190.73,0.00010998,2]
[335283906,1724068246456,-1190.73,0.00010998,2]
[335283907,1724068246465,-928.37721796,0.00010998,2]
[335283908,1724068553067,179.87,8.219e-05,2]
[335283909,1724068632914,150.316515,0.000139,31]
[335283910,1724068665909,262.0,9.89e-05,2]
[335283911,1724068666252,262.0,9.82e-05,2]
[335283912,1724068666670,262.0,9.75e-05,2]
[335283913,1724068667062,262.0,9.68e-05,2]
[335283914,1724069014798,180.9,8.219e-05,2]
[335283915,1724069026863,160.0,9.718e-05,2]
[335283919,1724069279914,179.64,9.618e-05,2]
[335283920,1724069307466,-220.36,9.943e-05,2]
[335283922,1724069307494,-246.98681895,9.96e-05,2]
[335283928,1724069364079,171.66,9.681e-05,2]
[335283961,1724069432053,-156.3474976,9.929e-05,2]
[335283962,1724069432065,-1519.77702755,9.943e-05,2]
[335283963,1724069432106,-823.55098363,9.943e-05,2]
[335283964,1724069432117,-15.01318105,9.96e-05,2]
[335283965,1724069432129,-4794.2461,0.0001,2]
[335283966,1724069432140,-316.7232625,0.00010026,2]
[335283967,1724069432151,-262.0,0.0001003,2]
[335283968,1724069432163,-547.15346494,0.00010097,2]
[335283969,1724069432173,-155.0,0.00010097,2]
[335283970,1724069432185,-262.0,0.000101,2]
[335283971,1724069432196,-300.0,0.0001013,2]
[335283972,1724069432208,-300.0,0.0001013,2]
[335283973,1724069432220,-840.0,0.00010131,2]
[335283974,1724069432232,-262.0,0.0001017,2]
[335283975,1724069432243,-2353.60156518,0.0001017,2]
[335283976,1724069432258,-7467.38843482,0.0001017,2]
[335283977,1724069432270,-886.16,0.0001017,2]
[335283978,1724069432281,-262.0,0.0001023,2]
[335283979,1724069432293,-262.0,0.000103,2]
[335283980,1724069432310,-262.0,0.0001037,2]
[335283981,1724069432322,-499.99,0.00010439,2]
[335283982,1724069432333,-150.0,0.00010439,2]
[335283984,1724069432347,-215.0,0.0001044,2]
[335283986,1724069432358,-262.0,0.0001044,2]
[335283987,1724069432368,-180.9,0.00010463,2]
[335283988,1724069432379,-215.0,0.0001051,2]
[335283989,1724069432391,-262.0,0.0001051,2]
[335283990,1724069432401,-215.0,0.0001058,2]
[335283991,1724069432411,-262.0,0.0001058,2]
[335283992,1724069432421,-140.7140578,0.0001065,2]
[335283993,1724069432636,-74.2859422,0.0001065,2]
[335283994,1724069432647,-262.0,0.0001065,2]
[335283995,1724069432658,-215.0,0.0001072,2]
[335283996,1724069432668,-262.0,0.0001072,2]
[335283997,1724069432679,-80.49365931,0.0001079,2]
[335283998,1724069432692,-134.50634069,0.0001079,2]
[335283999,1724069432703,-158.90842258,0.0001079,2]
[335284000,1724069432715,-103.09157742,0.0001079,2]
[335284001,1724069432726,-2145.58255198,0.00010795,2]
[335284002,1724069432750,-628.42,0.00010795,2]
[335284003,1724069432768,-350.556,0.00010795,2]
[335284004,1724069432781,-2852.7448324,0.00010795,2]
[335284008,1724069438101,-292.76862131,9.988e-05,2]
[335284009,1724069438113,-1594.11137869,0.00010795,2]
[335284167,1724069442290,-438.2025,0.00010795,2]
[335284168,1724069442313,-410.38872653,0.00010795,2]
[335284169,1724069442325,-343.26358931,0.00010795,2]
[335284170,1724069442340,-3564.36009513,0.00010795,2]
[335284171,1724069442351,-8229.3478,0.00010798,2]
[335284172,1724069442360,-327.92758471,0.00010799,2]
[335284173,1724069442369,-90.58492271,0.000108,2]
[335284174,1724069442385,-1120.66502401,0.000108,2]
[335284175,1724069442396,-11105.03117253,0.000108,2]
[335284176,1724069442406,-179.64,0.00010821,2]
[335284177,1724069442415,-215.0,0.0001086,2]
[335284178,1724069442424,-262.0,0.0001086,2]
[335284179,1724069442433,-524.74723859,0.00010888,2]
[335284180,1724069442442,-546.67335,0.0001089,2]
[335284181,1724069442451,-16004.08028479,0.00010895,2]
[335284182,1724069442464,-14042.43253206,0.00010895,2]
[335284183,1724069442476,-998.52381322,0.00010895,2]
[335284184,1724069442487,-730.3375,0.00010895,2]
[335284185,1724069442498,-1527.0295442,0.00010895,2]
[335284186,1724069442524,-6206.84598205,0.00010895,2]
[335284187,1724069442535,-1735.14902377,0.00010895,2]
[335284188,1724069442546,-1370.37733886,0.00010895,2]
[335284189,1724069442557,-500.0,0.00010895,2]
[335284190,1724069442568,-681.43362743,0.00010895,2]
[335284191,1724069442579,-384.644286,0.00010895,2]
[335284192,1724069442591,-29277.602109,0.00010895,2]
[335284193,1724069442603,-259.17000001,0.00010895,2]
[335284194,1724069442741,-584.268901,0.00010895,2]
[335284195,1724069442894,-537.81111548,0.00010895,2]
[335284196,1724069442906,-6496.46948832,0.00010895,2]
[335284197,1724069442917,-511.70455756,0.00010895,2]
[335284198,1724069442928,-337.070494,0.00010895,2]
[335284199,1724069442939,-7939.06706332,0.00010895,2]
[335284200,1724069442951,-4821.27143893,0.00010895,2]
[335284201,1724069442960,-500.0,0.00010895,2]
[335284202,1724069442969,-500.0,0.00010897,2]
[335284203,1724069442978,-500.0,0.00010897,2]
[335284204,1724069442987,-500.0,0.00010897,2]
[335284205,1724069442996,-617.88417316,0.00010897,2]
[335284207,1724069443006,-1549.86,0.00010897,2]
[335284209,1724069443015,-500.0,0.00010897,2]
[335284211,1724069443024,-500.0,0.00010898,2]
[335284212,1724069443033,-500.0,0.00010898,2]
[335284214,1724069443042,-500.0,0.00010898,2]
[335284216,1724069443052,-824.65,0.00010898,2]
[335284217,1724069443061,-2715.16145402,0.00010898,2]
[335284218,1724069443071,-527.39556223,0.00010898,2]
[335284219,1724069443084,-5548.82298375,0.00010898,2]
[335284220,1724069443093,-992.27,0.00010898,2]
[335284222,1724069443104,-280.95482892,0.00010898,2]
[335284223,1724069443113,-2053.82,0.00010898,2]
[335284224,1724069443122,-2657.01,0.00010898,2]
[335284225,1724069443131,-1267.78,0.00010898,2]
[335284226,1724069443140,-2222.8,0.00010898,2]
[335284227,1724069443150,-3677.39,0.00010898,2]
[335284228,1724069443159,-1413.57,0.00010898,2]
[335284230,1724069443168,-500.0,0.00010898,2]
[335284232,1724069443177,-500.0,0.00010898,2]
[335284235,1724069443186,-65839.7843,0.00010898,2]
[335284236,1724069443195,-7468.22,0.00010898,2]
[335284238,1724069443204,-3237.1381,0.00010899,2]
[335284239,1724069443213,-194046.0893,0.00010899,2]
[335284240,1724069443223,-1938.7076,0.00010899,2]
[335284241,1724069443232,-4872.9976,0.00010899,2]
[335284242,1724069443241,-178.81007375,0.00010899,2]
[335284243,1724069443251,-450.60251024,0.00010899,2]
[335284244,1724069443260,-450.60251024,0.00010899,2]
[335284245,1724069443269,-450.60251024,0.00010899,2]
[335284246,1724069443278,-450.60251024,0.00010899,2]
[335284247,1724069443288,-450.60251024,0.00010899,2]
[335284248,1724069443297,-450.60251024,0.00010899,2]
[335284249,1724069443310,-450.60251024,0.00010899,2]
[335284250,1724069443320,-450.60251024,0.00010899,2]
[335284251,1724069443329,-450.60251024,0.00010899,2]
[335284252,1724069443338,-962.96781377,0.00010899,2]
[335284253,1724069443351,-450.60251024,0.000109,2]
[335284254,1724069443360,-619.16244216,0.000109,2]
[335284255,1724069443369,-619.16244216,0.000109,2]